[Event "December 12 Early 2023"]
[Site "https://www.chess.com"]
[Date "2023.12.12"]
[Round "2"]
[White "Vincenti, Leonardo"]
[Black "Kochiev, Ivan"]
[Result "1-0"]
[Board "198"]
[TimeControl "180+1"]
[WhiteFideId "28550820"]
[BlackFideId "2917890"]
[WhiteElo "2228"]
[BlackElo "2482"]
[WhiteTeam "ITA"]
[BlackTeam "BUL"]
[WhiteClock "0:00:08"]
[BlackClock "0:00:00"]

1. e4 {[%clk 0:03:00]}  e5 {[%clk 0:03:00]} 2. Nf3 {[%clk 0:03:00]}  Nf6 {[%clk 0:03:00]} 3. Nc3 {[%clk 0:02:58]}  Nc6 {[%clk 0:03:00]} 4. d4 {[%clk 0:02:57]}  exd4 {[%clk 0:03:01]} 5. Nxd4 {[%clk 0:02:58]}  Bb4 {[%clk 0:03:02]} 6. Nxc6 {[%clk 0:02:58]}  bxc6 {[%clk 0:03:03]} 7. Bd3 {[%clk 0:02:58]}  d5 {[%clk 0:03:03]} 8. exd5 {[%clk 0:02:59]}  cxd5 {[%clk 0:03:04]} 9. O-O {[%clk 0:02:59]}  O-O {[%clk 0:03:05]} 10. Bg5 {[%clk 0:02:58]}  c6 {[%clk 0:03:05]} 11. Qf3 {[%clk 0:02:58]}  Rb8 {[%clk 0:03:03]} 12. Ne2 {[%clk 0:02:50]}  Bd6 {[%clk 0:03:00]} 13. Rab1 {[%clk 0:02:39]}  Re8 {[%clk 0:02:47]} 14. Nd4 {[%clk 0:02:36]}  Bd7 {[%clk 0:02:13]} 15. Bf5 {[%clk 0:02:23]}  Bxf5 {[%clk 0:01:59]} 16. Qxf5 {[%clk 0:02:15]}  Re5 {[%clk 0:01:53]} 17. Bxf6 {[%clk 0:02:13]}  gxf6 {[%clk 0:01:47]} 18. Qf3 {[%clk 0:02:00]}  Qd7 {[%clk 0:01:42]} 19. Qxf6 {[%clk 0:01:49]}  Rbe8 {[%clk 0:01:33]} 20. Nf3 {[%clk 0:01:38]}  R5e6 {[%clk 0:01:34]} 21. Qf5 {[%clk 0:01:36]}  Qe7 {[%clk 0:01:31]} 22. g3 {[%clk 0:00:56]}  Rg6 {[%clk 0:00:43]} 23. Rbe1 {[%clk 0:00:52]}  Qd8 {[%clk 0:00:42]} 24. Rxe8+ {[%clk 0:00:51]}  Qxe8 {[%clk 0:00:42]} 25. Re1 {[%clk 0:00:52]}  Qd8 {[%clk 0:00:43]} 26. Kg2 {[%clk 0:00:43]}  Kg7 {[%clk 0:00:34]} 27. Ne5 {[%clk 0:00:42]}  Bxe5 {[%clk 0:00:15]} 28. Qxe5+ {[%clk 0:00:43]}  Kg8 {[%clk 0:00:10]} 29. Qe8+ {[%clk 0:00:38]}  Qxe8 {[%clk 0:00:10]} 30. Rxe8+ {[%clk 0:00:38]}  Kg7 {[%clk 0:00:11]} 31. Ra8 {[%clk 0:00:31]}  Re6 {[%clk 0:00:11]} 32. Kf1 {[%clk 0:00:15]}  Re7 {[%clk 0:00:12]} 33. Rc8 {[%clk 0:00:15]}  Rb7 {[%clk 0:00:08]} 34. b3 {[%clk 0:00:14]}  Rb6 {[%clk 0:00:09]} 35. Rc7 {[%clk 0:00:14]}  a6 {[%clk 0:00:09]} 36. a4 {[%clk 0:00:14]}  h6 {[%clk 0:00:06]} 37. Ke2 {[%clk 0:00:15]}  h5 {[%clk 0:00:04]} 38. h4 {[%clk 0:00:13]}  Kf8 {[%clk 0:00:03]} 39. Kf3 {[%clk 0:00:13]}  Kg7 {[%clk 0:00:03]} 40. Kf4 {[%clk 0:00:13]}  Kg6 {[%clk 0:00:02]} 41. a5 {[%clk 0:00:09]}  Rb4+ {[%clk 0:00:02]} 42. Kf3 {[%clk 0:00:09]}  Rb5 {[%clk 0:00:01]} 43. Rxc6+ {[%clk 0:00:09]}  f6 {[%clk 0:00:02]} 44. Rxa6 {[%clk 0:00:10]}  Rc5 {[%clk 0:00:02]} 45. b4 {[%clk 0:00:09]}  Rxc2 {[%clk 0:00:02]} 46. Rb6 {[%clk 0:00:10]}  d4 {[%clk 0:00:02]} 47. Rd6 {[%clk 0:00:09]}  Rc4 {[%clk 0:00:02]} 48. Ke4 {[%clk 0:00:09]}  Rxb4 {[%clk 0:00:03]} 49. Rxd4 {[%clk 0:00:09]}  Rb5 {[%clk 0:00:03]} 50. Rd5 {[%clk 0:00:09]}  Rb4+ {[%clk 0:00:03]} 51. Kf3 {[%clk 0:00:09]}  Ra4 {[%clk 0:00:04]} 52. Rb5 {[%clk 0:00:09]}  Ra3+ {[%clk 0:00:04]} 53. Kg2 {[%clk 0:00:09]}  Ra4 {[%clk 0:00:05]} 54. f3 {[%clk 0:00:10]}  Kh6 {[%clk 0:00:06]} 55. Kh3 {[%clk 0:00:09]}  Ra3 {[%clk 0:00:06]} 56. Rf5 {[%clk 0:00:08]}  Kg6 {[%clk 0:00:06]} 57. g4 {[%clk 0:00:09]}  hxg4+ {[%clk 0:00:06]} 58. Kxg4 {[%clk 0:00:09]}  Ra4+ {[%clk 0:00:07]} 59. f4 {[%clk 0:00:10]}  Ra1 {[%clk 0:00:05]} 60. h5+ {[%clk 0:00:09]}  Kg7 {[%clk 0:00:05]} 61. Rb5 {[%clk 0:00:10]}  Kh6 {[%clk 0:00:02]} 62. Kf5 {[%clk 0:00:09]}  Kxh5 {[%clk 0:00:02]} 63. Kxf6+ {[%clk 0:00:09]}  Kg4 {[%clk 0:00:03]} 64. f5 {[%clk 0:00:09]}  Kf4 {[%clk 0:00:03]} 65. Kf7 {[%clk 0:00:09]}  Rb1 {[%clk 0:00:00]} 66. Rxb1 {[%clk 0:00:08]} 1-0

[Event "December 12 Early 2023"]
[Site "https://www.chess.com"]
[Date "2023.12.12"]
[Round "2"]
[White "Iljin, Timofey"]
[Black "Kuchava, Ana"]
[Result "1-0"]
[Board "199"]
[TimeControl "180+1"]
[WhiteFideId "14110180"]
[BlackFideId "13605348"]
[WhiteElo "2481"]
[BlackElo "2217"]
[WhiteTeam "UKR"]
[BlackTeam "GEO"]
[WhiteClock "0:01:43"]
[BlackClock "0:00:04"]

1. e4 {[%clk 0:03:00]}  c5 {[%clk 0:02:55]} 2. c3 {[%clk 0:02:59]}  Nf6 {[%clk 0:02:51]} 3. e5 {[%clk 0:02:59]}  Nd5 {[%clk 0:02:50]} 4. d4 {[%clk 0:03:00]}  cxd4 {[%clk 0:02:39]} 5. Nf3 {[%clk 0:03:00]}  Nc6 {[%clk 0:02:38]} 6. cxd4 {[%clk 0:03:00]}  d6 {[%clk 0:02:35]} 7. Bc4 {[%clk 0:03:00]}  Nb6 {[%clk 0:02:35]} 8. Bxf7+ {[%clk 0:03:01]}  Kxf7 {[%clk 0:02:34]} 9. e6+ {[%clk 0:03:01]}  Kg8 {[%clk 0:02:16]} 10. d5 {[%clk 0:03:01]}  Ne5 {[%clk 0:02:12]} 11. Nc3 {[%clk 0:03:01]}  Nxf3+ {[%clk 0:01:32]} 12. Qxf3 {[%clk 0:03:02]}  Qe8 {[%clk 0:01:32]} 13. h4 {[%clk 0:03:00]}  g6 {[%clk 0:01:28]} 14. h5 {[%clk 0:02:58]}  Bg7 {[%clk 0:01:28]} 15. Nb5 {[%clk 0:02:46]}  Qf8 {[%clk 0:01:15]} 16. Qd1 {[%clk 0:02:35]}  Qf5 {[%clk 0:01:01]} 17. Nc7 {[%clk 0:02:30]}  Rb8 {[%clk 0:01:00]} 18. Be3 {[%clk 0:02:12]}  Bxb2 {[%clk 0:00:49]} 19. Rb1 {[%clk 0:02:10]}  Bc3+ {[%clk 0:00:48]} 20. Kf1 {[%clk 0:02:07]}  Be5 {[%clk 0:00:17]} 21. Rh3 {[%clk 0:02:00]}  h6 {[%clk 0:00:15]} 22. hxg6 {[%clk 0:01:52]}  Kg7 {[%clk 0:00:14]} 23. Rb4 {[%clk 0:01:43]}  Qxg6 {[%clk 0:00:09]} 24. Rg4 {[%clk 0:01:42]}  Nc4 {[%clk 0:00:05]} 25. Rxg6+ {[%clk 0:01:42]}  Kxg6 {[%clk 0:00:05]} 26. Qg4+ {[%clk 0:01:42]}  Kh7 {[%clk 0:00:04]} 27. Rxh6# {[%clk 0:01:43]} 1-0

[Event "December 12 Early 2023"]
[Site "https://www.chess.com"]
[Date "2023.12.12"]
[Round "2"]
[White "Kotyk, Michael"]
[Black "Srivatsan Karthikeyan"]
[Result "0-1"]
[Board "201"]
[TimeControl "180+1"]
[WhiteFideId "16214501"]
[BlackFideId "25684248"]
[WhiteElo "2472"]
[BlackElo "2217"]
[WhiteTeam "GER"]
[BlackTeam "IND"]
[WhiteClock "0:00:24"]
[BlackClock "0:00:17"]

1. e4 {[%clk 0:02:58]}  e5 {[%clk 0:03:00]} 2. Nc3 {[%clk 0:02:55]}  Nc6 {[%clk 0:02:59]} 3. g3 {[%clk 0:02:54]}  Nf6 {[%clk 0:02:58]} 4. Bg2 {[%clk 0:02:50]}  Bc5 {[%clk 0:02:57]} 5. Nge2 {[%clk 0:02:50]}  O-O {[%clk 0:02:56]} 6. O-O {[%clk 0:02:49]}  a6 {[%clk 0:02:54]} 7. d3 {[%clk 0:02:47]}  d6 {[%clk 0:02:52]} 8. h3 {[%clk 0:02:44]}  Be6 {[%clk 0:02:51]} 9. Nd5 {[%clk 0:02:44]}  Bxd5 {[%clk 0:02:47]} 10. exd5 {[%clk 0:02:45]}  Ne7 {[%clk 0:02:48]} 11. c4 {[%clk 0:02:35]}  Re8 {[%clk 0:02:24]} 12. d4 {[%clk 0:02:27]}  exd4 {[%clk 0:02:22]} 13. Nxd4 {[%clk 0:02:28]}  Ng6 {[%clk 0:02:21]} 14. Be3 {[%clk 0:02:19]}  Ne5 {[%clk 0:02:18]} 15. b3 {[%clk 0:02:10]}  Qd7 {[%clk 0:02:10]} 16. Bg5 {[%clk 0:01:52]}  Qd8 {[%clk 0:02:02]} 17. Nf5 {[%clk 0:01:46]}  h6 {[%clk 0:01:55]} 18. Bf4 {[%clk 0:01:35]}  Ng6 {[%clk 0:01:38]} 19. Bd2 {[%clk 0:01:22]}  Qd7 {[%clk 0:01:35]} 20. g4 {[%clk 0:01:10]}  h5 {[%clk 0:01:15]} 21. Bc3 {[%clk 0:01:05]}  hxg4 {[%clk 0:01:07]} 22. hxg4 {[%clk 0:01:05]}  Ne5 {[%clk 0:01:00]} 23. Bh3 {[%clk 0:00:56]}  Ne4 {[%clk 0:00:52]} 24. Bd4 {[%clk 0:00:50]}  Ng5 {[%clk 0:00:41]} 25. Bg2 {[%clk 0:00:36]}  Bxd4 {[%clk 0:00:34]} 26. Nxd4 {[%clk 0:00:37]}  Qxg4 {[%clk 0:00:34]} 27. f4 {[%clk 0:00:29]}  Nh3+ {[%clk 0:00:23]} 28. Kh2 {[%clk 0:00:28]}  Nxf4 {[%clk 0:00:21]} 29. Qxg4 {[%clk 0:00:26]}  Nxg4+ {[%clk 0:00:19]} 30. Kg3 {[%clk 0:00:27]}  Nxg2 {[%clk 0:00:20]} 31. Kxg4 {[%clk 0:00:23]}  Ne3+ {[%clk 0:00:20]} 32. Kf3 {[%clk 0:00:24]}  Nxf1 {[%clk 0:00:20]} 33. Rxf1 {[%clk 0:00:23]}  Re5 {[%clk 0:00:21]} 34. Rg1 {[%clk 0:00:22]}  Rae8 {[%clk 0:00:21]} 35. Rg2 {[%clk 0:00:20]}  g6 {[%clk 0:00:20]} 36. Kf2 {[%clk 0:00:20]}  Re4 {[%clk 0:00:21]} 37. Nf3 {[%clk 0:00:20]}  Re2+ {[%clk 0:00:21]} 38. Kg3 {[%clk 0:00:21]}  Rxg2+ {[%clk 0:00:21]} 39. Kxg2 {[%clk 0:00:21]}  Re2+ {[%clk 0:00:22]} 40. Kg3 {[%clk 0:00:22]}  Rxa2 {[%clk 0:00:22]} 41. Kf4 {[%clk 0:00:22]}  Rb2 {[%clk 0:00:20]} 42. Nd4 {[%clk 0:00:21]}  Kg7 {[%clk 0:00:21]} 43. Ke4 {[%clk 0:00:21]}  g5 {[%clk 0:00:21]} 44. Kd3 {[%clk 0:00:22]}  Kg6 {[%clk 0:00:20]} 45. Kc3 {[%clk 0:00:23]}  Rh2 {[%clk 0:00:20]} 46. b4 {[%clk 0:00:23]}  g4 {[%clk 0:00:20]} 47. c5 {[%clk 0:00:23]}  g3 {[%clk 0:00:20]} 48. Nf3 {[%clk 0:00:22]}  Rf2 {[%clk 0:00:20]} 49. Nh4+ {[%clk 0:00:22]}  Kg5 {[%clk 0:00:20]} 50. c6 {[%clk 0:00:22]}  b6 {[%clk 0:00:20]} 51. b5 {[%clk 0:00:22]}  a5 {[%clk 0:00:20]} 52. Kd4 {[%clk 0:00:22]}  Kxh4 {[%clk 0:00:20]} 53. Ke3 {[%clk 0:00:22]}  Rf6 {[%clk 0:00:20]} 54. Ke4 {[%clk 0:00:22]}  g2 {[%clk 0:00:19]} 55. Kd3 {[%clk 0:00:23]}  g1=Q {[%clk 0:00:18]} 56. Kc4 {[%clk 0:00:24]}  Qg3 {[%clk 0:00:16]} 57. Kd4 {[%clk 0:00:24]}  Rf4# {[%clk 0:00:17]} 0-1

[Event "December 12 Early 2023"]
[Site "https://www.chess.com"]
[Date "2023.12.12"]
[Round "2"]
[White "Senft, Sean"]
[Black "Petrukhina, Olga"]
[Result "1-0"]
[Board "202"]
[TimeControl "180+1"]
[WhiteFideId "2044960"]
[BlackFideId "13703935"]
[WhiteElo "2471"]
[BlackElo "2215"]
[WhiteTeam "USA"]
[BlackTeam "KAZ"]
[WhiteClock "0:01:40"]
[BlackClock "0:00:00"]

1. d4 {[%clk 0:03:00]}  e6 {[%clk 0:02:57]} 2. c4 {[%clk 0:03:00]}  Nf6 {[%clk 0:02:57]} 3. Nc3 {[%clk 0:03:00]}  d5 {[%clk 0:02:57]} 4. cxd5 {[%clk 0:03:00]}  exd5 {[%clk 0:02:56]} 5. Nf3 {[%clk 0:03:01]}  Be7 {[%clk 0:02:53]} 6. Bg5 {[%clk 0:03:01]}  c6 {[%clk 0:02:53]} 7. e3 {[%clk 0:03:01]}  Nbd7 {[%clk 0:02:53]} 8. Bd3 {[%clk 0:03:02]}  Ne4 {[%clk 0:02:52]} 9. Bf4 {[%clk 0:03:01]}  Ndf6 {[%clk 0:02:47]} 10. Qc2 {[%clk 0:03:01]}  Nxc3 {[%clk 0:02:39]} 11. bxc3 {[%clk 0:03:02]}  Bg4 {[%clk 0:02:33]} 12. Ne5 {[%clk 0:03:00]}  Bh5 {[%clk 0:02:33]} 13. O-O {[%clk 0:03:00]}  O-O {[%clk 0:02:29]} 14. f3 {[%clk 0:02:59]}  Bg6 {[%clk 0:02:27]} 15. Nxg6 {[%clk 0:02:59]}  hxg6 {[%clk 0:02:27]} 16. e4 {[%clk 0:02:59]}  Nh5 {[%clk 0:02:20]} 17. Bd2 {[%clk 0:02:56]}  Bg5 {[%clk 0:02:10]} 18. e5 {[%clk 0:02:54]}  Nf4 {[%clk 0:01:40]} 19. Bxf4 {[%clk 0:02:46]}  Bxf4 {[%clk 0:01:41]} 20. Rae1 {[%clk 0:02:43]}  Qc7 {[%clk 0:01:03]} 21. g3 {[%clk 0:02:40]}  Bg5 {[%clk 0:01:02]} 22. f4 {[%clk 0:02:41]}  Be7 {[%clk 0:00:57]} 23. f5 {[%clk 0:02:40]}  gxf5 {[%clk 0:00:56]} 24. Rxf5 {[%clk 0:02:40]}  g6 {[%clk 0:00:43]} 25. Rf3 {[%clk 0:02:37]}  Kg7 {[%clk 0:00:41]} 26. Ref1 {[%clk 0:02:36]}  Bg5 {[%clk 0:00:38]} 27. h4 {[%clk 0:02:32]}  Be7 {[%clk 0:00:21]} 28. Qd2 {[%clk 0:02:30]}  Rae8 {[%clk 0:00:15]} 29. Qf4 {[%clk 0:02:23]}  Qd7 {[%clk 0:00:14]} 30. Bb1 {[%clk 0:02:16]}  Qe6 {[%clk 0:00:14]} 31. Qd2 {[%clk 0:02:15]}  c5 {[%clk 0:00:13]} 32. Qg2 {[%clk 0:02:13]}  cxd4 {[%clk 0:00:13]} 33. cxd4 {[%clk 0:02:14]}  Qb6 {[%clk 0:00:12]} 34. h5 {[%clk 0:02:10]}  Qxd4+ {[%clk 0:00:12]} 35. R1f2 {[%clk 0:02:05]}  Rc8 {[%clk 0:00:10]} 36. h6+ {[%clk 0:02:02]}  Kh7 {[%clk 0:00:09]} 37. Kh2 {[%clk 0:02:00]}  Qxe5 {[%clk 0:00:04]} 38. Rxf7+ {[%clk 0:01:59]}  Kh8 {[%clk 0:00:04]} 39. Bxg6 {[%clk 0:01:57]}  Rxf7 {[%clk 0:00:01]} 40. Rxf7 {[%clk 0:01:58]}  Rf8 {[%clk 0:00:01]} 41. Rh7+ {[%clk 0:01:54]}  Kg8 {[%clk 0:00:01]} 42. Rg7+ {[%clk 0:01:55]}  Kh8 {[%clk 0:00:01]} 43. Qc2 {[%clk 0:01:45]}  Bf6 {[%clk 0:00:01]} 44. Rh7+ {[%clk 0:01:39]}  Kg8 {[%clk 0:00:01]} 45. Rxb7 {[%clk 0:01:40]}  Kh8 {[%clk 0:00:00]} 46. Be8 {[%clk 0:01:40]} 1-0

[Event "December 12 Early 2023"]
[Site "https://www.chess.com"]
[Date "2023.12.12"]
[Round "2"]
[White "Vanek, Tomas"]
[Black "Lehtosaari, Mauri"]
[Result "1/2-1/2"]
[Board "205"]
[TimeControl "180+1"]
[WhiteFideId "313459"]
[BlackFideId "501999"]
[WhiteElo "2202"]
[BlackElo "2468"]
[WhiteTeam "CZE"]
[BlackTeam "FIN"]
[WhiteClock "0:00:26"]
[BlackClock "0:00:04"]

1. e4 {[%clk 0:03:00]}  c5 {[%clk 0:02:55]} 2. Nf3 {[%clk 0:02:57]}  e6 {[%clk 0:02:51]} 3. a3 {[%clk 0:02:48]}  Nf6 {[%clk 0:02:39]} 4. e5 {[%clk 0:02:47]}  Nd5 {[%clk 0:02:35]} 5. Nc3 {[%clk 0:02:44]}  d6 {[%clk 0:02:26]} 6. Nxd5 {[%clk 0:02:28]}  exd5 {[%clk 0:02:26]} 7. Qe2 {[%clk 0:02:28]}  Be7 {[%clk 0:02:22]} 8. exd6 {[%clk 0:02:17]}  Qxd6 {[%clk 0:02:23]} 9. d4 {[%clk 0:02:13]}  O-O {[%clk 0:02:21]} 10. Be3 {[%clk 0:02:10]}  c4 {[%clk 0:02:19]} 11. O-O-O {[%clk 0:02:07]}  b5 {[%clk 0:02:14]} 12. Qd2 {[%clk 0:02:00]}  a5 {[%clk 0:02:09]} 13. Ne5 {[%clk 0:01:50]}  b4 {[%clk 0:02:06]} 14. a4 {[%clk 0:01:40]}  c3 {[%clk 0:01:37]} 15. Qe2 {[%clk 0:01:35]}  cxb2+ {[%clk 0:01:36]} 16. Kxb2 {[%clk 0:01:35]}  Nd7 {[%clk 0:01:28]} 17. Bf4 {[%clk 0:01:32]}  Nb6 {[%clk 0:01:15]} 18. Ra1 {[%clk 0:01:22]}  Ba6 {[%clk 0:01:05]} 19. Qd2 {[%clk 0:01:19]}  Bxf1 {[%clk 0:01:03]} 20. Rhxf1 {[%clk 0:01:18]}  Bf6 {[%clk 0:00:55]} 21. Qd3 {[%clk 0:01:16]}  Rac8 {[%clk 0:00:50]} 22. Ng6 {[%clk 0:01:06]}  Qc6 {[%clk 0:00:37]} 23. Nxf8 {[%clk 0:01:05]}  Nc4+ {[%clk 0:00:35]} 24. Kb3 {[%clk 0:01:03]}  Rxf8 {[%clk 0:00:35]} 25. Be5 {[%clk 0:01:00]}  Rc8 {[%clk 0:00:13]} 26. f4 {[%clk 0:00:57]}  Nd6 {[%clk 0:00:08]} 27. Bxf6 {[%clk 0:00:41]}  gxf6 {[%clk 0:00:07]} 28. Rf3 {[%clk 0:00:41]}  Ne4 {[%clk 0:00:07]} 29. Re1 {[%clk 0:00:29]}  f5 {[%clk 0:00:05]} 30. Rg3+ {[%clk 0:00:27]}  Kf8 {[%clk 0:00:04]} 31. Rh3 {[%clk 0:00:26]}  Kg8 {[%clk 0:00:03]} 32. Rg3+ {[%clk 0:00:25]}  Kf8 {[%clk 0:00:04]} 33. Rh3 {[%clk 0:00:26]}  Kg8 {[%clk 0:00:04]} 34. Rg3+ {[%clk 0:00:26]} 1/2-1/2

[Event "December 12 Early 2023"]
[Site "https://www.chess.com"]
[Date "2023.12.12"]
[Round "2"]
[White "Hrebenshchykova, Yelyzaveta"]
[Black "Guzman Lozano, Campo Elias"]
[Result "1-0"]
[Board "207"]
[TimeControl "180+1"]
[WhiteFideId "14159899"]
[BlackFideId "4403746"]
[WhiteElo "2467"]
[BlackElo "2193"]
[WhiteTeam "UKR"]
[BlackTeam "COL"]
[WhiteClock "0:00:03"]
[BlackClock "0:00:05"]

1. e4 {[%clk 0:03:00]}  c5 {[%clk 0:02:59]} 2. Nf3 {[%clk 0:03:00]}  Nc6 {[%clk 0:02:59]} 3. d4 {[%clk 0:02:47]}  cxd4 {[%clk 0:02:59]} 4. Nxd4 {[%clk 0:02:48]}  e5 {[%clk 0:02:58]} 5. Nb5 {[%clk 0:02:48]}  a6 {[%clk 0:02:58]} 6. Nd6+ {[%clk 0:02:47]}  Bxd6 {[%clk 0:02:58]} 7. Qxd6 {[%clk 0:02:48]}  Qe7 {[%clk 0:02:58]} 8. Qd1 {[%clk 0:02:36]}  Nf6 {[%clk 0:02:58]} 9. Nc3 {[%clk 0:02:36]}  h6 {[%clk 0:02:57]} 10. Bc4 {[%clk 0:02:19]}  d6 {[%clk 0:02:57]} 11. O-O {[%clk 0:02:12]}  Be6 {[%clk 0:02:56]} 12. Bb3 {[%clk 0:02:07]}  Rd8 {[%clk 0:02:53]} 13. h3 {[%clk 0:02:02]}  O-O {[%clk 0:02:52]} 14. Be3 {[%clk 0:02:01]}  d5 {[%clk 0:02:41]} 15. Nxd5 {[%clk 0:01:41]}  Nxd5 {[%clk 0:02:29]} 16. exd5 {[%clk 0:01:42]}  Na5 {[%clk 0:02:29]} 17. c4 {[%clk 0:01:26]}  Nxb3 {[%clk 0:02:27]} 18. axb3 {[%clk 0:01:26]}  f5 {[%clk 0:02:22]} 19. f4 {[%clk 0:01:23]}  Bf7 {[%clk 0:02:18]} 20. Qf3 {[%clk 0:01:22]}  e4 {[%clk 0:02:17]} 21. Qf2 {[%clk 0:01:22]}  Qb4 {[%clk 0:02:17]} 22. Bc5 {[%clk 0:01:22]}  Qxb3 {[%clk 0:02:16]} 23. Bxf8 {[%clk 0:01:22]}  Kxf8 {[%clk 0:02:16]} 24. Qd4 {[%clk 0:01:20]}  b5 {[%clk 0:02:11]} 25. cxb5 {[%clk 0:01:07]}  Rxd5 {[%clk 0:02:09]} 26. Qc3 {[%clk 0:01:05]}  Qxb5 {[%clk 0:02:06]} 27. Rad1 {[%clk 0:00:56]}  Qc5+ {[%clk 0:01:56]} 28. Qxc5+ {[%clk 0:00:56]}  Rxc5 {[%clk 0:01:55]} 29. b4 {[%clk 0:00:41]}  Rc2 {[%clk 0:01:53]} 30. Rf2 {[%clk 0:00:41]}  Rc4 {[%clk 0:01:53]} 31. Rb1 {[%clk 0:00:41]}  Be8 {[%clk 0:01:52]} 32. Ra2 {[%clk 0:00:35]}  Bb5 {[%clk 0:01:52]} 33. Kf2 {[%clk 0:00:35]}  Ke7 {[%clk 0:01:46]} 34. g4 {[%clk 0:00:21]}  Ke6 {[%clk 0:01:41]} 35. gxf5+ {[%clk 0:00:21]}  Kxf5 {[%clk 0:01:37]} 36. Rg1 {[%clk 0:00:20]}  g5 {[%clk 0:01:15]} 37. fxg5 {[%clk 0:00:19]}  hxg5 {[%clk 0:01:16]} 38. Rd2 {[%clk 0:00:20]}  Rxb4 {[%clk 0:01:15]} 39. Rd5+ {[%clk 0:00:20]}  Ke6 {[%clk 0:01:15]} 40. Rgxg5 {[%clk 0:00:20]}  Bc6 {[%clk 0:00:47]} 41. Rc5 {[%clk 0:00:13]}  Rb2+ {[%clk 0:00:46]} 42. Ke3 {[%clk 0:00:11]}  Rb3+ {[%clk 0:00:45]} 43. Kf4 {[%clk 0:00:04]}  Kd6 {[%clk 0:00:45]} 44. h4 {[%clk 0:00:02]}  Rf3+ {[%clk 0:00:44]} 45. Kg4 {[%clk 0:00:02]}  Rf1 {[%clk 0:00:38]} 46. Rce5 {[%clk 0:00:02]}  Rg1+ {[%clk 0:00:23]} 47. Kh5 {[%clk 0:00:02]}  Rxg5+ {[%clk 0:00:22]} 48. Rxg5 {[%clk 0:00:02]}  e3 {[%clk 0:00:21]} 49. Rg1 {[%clk 0:00:02]}  e2 {[%clk 0:00:21]} 50. Re1 {[%clk 0:00:02]}  Bf3+ {[%clk 0:00:20]} 51. Kg5 {[%clk 0:00:02]}  a5 {[%clk 0:00:20]} 52. h5 {[%clk 0:00:02]}  Ke7 {[%clk 0:00:19]} 53. h6 {[%clk 0:00:02]}  Kf7 {[%clk 0:00:18]} 54. Kf4 {[%clk 0:00:02]}  Bh5 {[%clk 0:00:17]} 55. Rh1 {[%clk 0:00:03]}  Kg6 {[%clk 0:00:12]} 56. h7 {[%clk 0:00:02]}  Kxh7 {[%clk 0:00:10]} 57. Rxh5+ {[%clk 0:00:02]}  Kg6 {[%clk 0:00:05]} 58. Re5 {[%clk 0:00:03]} 1-0

[Event "December 12 Early 2023"]
[Site "https://www.chess.com"]
[Date "2023.12.12"]
[Round "2"]
[White "Semenova, Alina"]
[Black "Mazurkiewicz, Michal"]
[Result "1-0"]
[Board "210"]
[TimeControl "180+1"]
[WhiteFideId "24113875"]
[BlackFideId "1124943"]
[WhiteElo "2177"]
[BlackElo "2455"]
[WhiteTeam "RUS"]
[BlackTeam "POL"]
[WhiteClock "0:01:02"]
[BlackClock "0:00:03"]

1. e4 {[%clk 0:02:59]}  d6 {[%clk 0:02:59]} 2. d4 {[%clk 0:02:58]}  Nf6 {[%clk 0:03:00]} 3. f3 {[%clk 0:02:58]}  e5 {[%clk 0:02:59]} 4. Be3 {[%clk 0:02:58]}  Be7 {[%clk 0:03:00]} 5. Qd2 {[%clk 0:02:58]}  O-O {[%clk 0:03:00]} 6. Nc3 {[%clk 0:02:58]}  c6 {[%clk 0:03:01]} 7. O-O-O {[%clk 0:02:56]}  b5 {[%clk 0:02:59]} 8. g4 {[%clk 0:02:47]}  Nbd7 {[%clk 0:02:57]} 9. h4 {[%clk 0:02:46]}  a5 {[%clk 0:02:44]} 10. h5 {[%clk 0:02:39]}  h6 {[%clk 0:02:37]} 11. g5 {[%clk 0:02:36]}  hxg5 {[%clk 0:02:35]} 12. Nh3 {[%clk 0:02:28]}  g4 {[%clk 0:02:29]} 13. Ng5 {[%clk 0:02:21]}  b4 {[%clk 0:02:18]} 14. Ne2 {[%clk 0:02:14]}  gxf3 {[%clk 0:02:17]} 15. Ng3 {[%clk 0:02:14]}  d5 {[%clk 0:02:13]} 16. Nf5 {[%clk 0:02:04]}  Nxe4 {[%clk 0:02:10]} 17. Nxe4 {[%clk 0:02:03]}  dxe4 {[%clk 0:02:11]} 18. Rg1 {[%clk 0:01:54]}  Bf6 {[%clk 0:02:08]} 19. Bh6 {[%clk 0:01:51]}  f2 {[%clk 0:01:03]} 20. Qxf2 {[%clk 0:01:45]}  Kh7 {[%clk 0:00:54]} 21. Bxg7 {[%clk 0:01:40]}  Rg8 {[%clk 0:00:54]} 22. h6 {[%clk 0:01:32]}  exd4 {[%clk 0:00:30]} 23. Ne7 {[%clk 0:01:17]}  Bxg7 {[%clk 0:00:07]} 24. hxg7 {[%clk 0:01:03]}  Ne5 {[%clk 0:00:03]} 25. Qh4# {[%clk 0:01:02]} 1-0

[Event "December 12 Early 2023"]
[Site "https://www.chess.com"]
[Date "2023.12.12"]
[Round "2"]
[White "Bolat, Inayat"]
[Black "Yeritsyaan"]
[Result "0-1"]
[Board "212"]
[TimeControl "180+1"]
[WhiteFideId "13733125"]
[WhiteElo "2449"]
[BlackElo "2146"]
[WhiteTeam "KAZ"]
[WhiteClock "0:00:00"]
[BlackClock "0:01:37"]

1. e4 {[%clk 0:03:00]}  d5 {[%clk 0:02:56]} 2. exd5 {[%clk 0:03:00]}  Nf6 {[%clk 0:02:56]} 3. Bb5+ {[%clk 0:02:56]}  c6 {[%clk 0:02:50]} 4. dxc6 {[%clk 0:02:56]}  bxc6 {[%clk 0:02:46]} 5. Be2 {[%clk 0:02:52]}  e5 {[%clk 0:02:41]} 6. Nc3 {[%clk 0:02:51]}  Bc5 {[%clk 0:02:39]} 7. d3 {[%clk 0:02:48]}  O-O {[%clk 0:02:40]} 8. Nf3 {[%clk 0:02:47]}  Re8 {[%clk 0:02:38]} 9. O-O {[%clk 0:02:47]}  Bf5 {[%clk 0:02:36]} 10. Be3 {[%clk 0:02:45]}  Bxe3 {[%clk 0:02:32]} 11. fxe3 {[%clk 0:02:46]}  Qb6 {[%clk 0:02:32]} 12. Qd2 {[%clk 0:02:32]}  Bg6 {[%clk 0:02:31]} 13. h3 {[%clk 0:02:26]}  Nbd7 {[%clk 0:02:27]} 14. Kh1 {[%clk 0:02:07]}  Rad8 {[%clk 0:02:21]} 15. e4 {[%clk 0:01:57]}  Nc5 {[%clk 0:02:11]} 16. Qg5 {[%clk 0:01:42]}  h6 {[%clk 0:02:07]} 17. Qg3 {[%clk 0:01:38]}  Qxb2 {[%clk 0:02:03]} 18. Nxe5 {[%clk 0:00:55]}  Qxc3 {[%clk 0:01:57]} 19. Nxg6 {[%clk 0:00:55]}  fxg6 {[%clk 0:01:58]} 20. Qxg6 {[%clk 0:00:51]}  Rf8 {[%clk 0:01:55]} 21. Rac1 {[%clk 0:00:18]}  Ne6 {[%clk 0:01:49]} 22. Qf5 {[%clk 0:00:08]}  Nd4 {[%clk 0:01:46]} 23. Qf2 {[%clk 0:00:06]}  Nxe4 {[%clk 0:01:43]} 24. Qe3 {[%clk 0:00:03]}  Nxe2 {[%clk 0:01:41]} 25. Kh2 {[%clk 0:00:00]}  Qe5+ {[%clk 0:01:37]} 0-1